[Event "Late-Titled-Tuesday-Blitz-June-25-2024"]
[Site "Chess.com"]
[Date "2024.06.25"]
[Round "8"]
[White "rionelG"]
[Black "Sondremelaa"]
[Result "0-1"]
[WhiteElo "2400"]
[BlackElo "2590"]
[TimeControl "180+1"]
[EndTime "15:26:38 PDT"]
[Termination "Sondremelaa won by resignation"]

1. e4 {[%clk 0:03:00.9]} 1... e5 {[%clk 0:02:59.5]} 2. Nf3 {[%clk 0:03:00.3]}
2... Nc6 {[%clk 0:03:00]} 3. d4 {[%clk 0:03:00.7]} 3... exd4 {[%clk 0:02:59.7]}
4. Nxd4 {[%clk 0:03:01.6]} 4... Nf6 {[%clk 0:02:59.8]} 5. Nxc6 {[%clk
0:03:01.7]} 5... bxc6 {[%clk 0:02:59.5]} 6. e5 {[%clk 0:03:02]} 6... Qe7 {[%clk
0:02:59.4]} 7. Qe2 {[%clk 0:03:02.5]} 7... Nd5 {[%clk 0:03:00]} 8. c4 {[%clk
0:03:03.1]} 8... Nb6 {[%clk 0:02:59.6]} 9. Nc3 {[%clk 0:03:01]} 9... Ba6 {[%clk
0:02:56.7]} 10. Qe4 {[%clk 0:02:54.6]} 10... Qe6 {[%clk 0:02:56.4]} 11. b3
{[%clk 0:02:53.5]} 11... Bb4 {[%clk 0:02:55.7]} 12. Bd2 {[%clk 0:02:52.2]} 12...
Bxc3 {[%clk 0:02:56.1]} 13. Bxc3 {[%clk 0:02:51.3]} 13... d5 {[%clk 0:02:56.7]}
14. cxd5 {[%clk 0:02:30.9]} 14... cxd5 {[%clk 0:02:53.7]} 15. Qd4 {[%clk
0:02:27.2]} 15... Bxf1 {[%clk 0:02:52.2]} 16. Kxf1 {[%clk 0:02:28.1]} 16... O-O
{[%clk 0:02:51.7]} 17. h4 {[%clk 0:02:20]} 17... Rfe8 {[%clk 0:02:46.2]} 18. h5
{[%clk 0:02:00.8]} 18... h6 {[%clk 0:02:44.3]} 19. Re1 {[%clk 0:01:54.2]} 19...
Nd7 {[%clk 0:02:41.8]} 20. f4 {[%clk 0:01:23.4]} 20... c5 {[%clk 0:02:40.1]} 21.
Qf2 {[%clk 0:01:23.5]} 21... d4 {[%clk 0:02:40]} 22. Bd2 {[%clk 0:01:23]} 22...
Qa6+ {[%clk 0:02:36.3]} 23. Kg1 {[%clk 0:01:22.4]} 23... Qxa2 {[%clk 0:02:36.5]}
24. Rh3 {[%clk 0:01:21.2]} 24... Rab8 {[%clk 0:02:29.9]} 25. b4 {[%clk 0:01:00]}
25... Qd5 {[%clk 0:02:11]} 26. f5 {[%clk 0:00:39.3]} 26... Rxe5 {[%clk
0:01:55.3]} 27. Rxe5 {[%clk 0:00:37.6]} 27... Nxe5 {[%clk 0:01:48.2]} 28. f6
{[%clk 0:00:36.7]} 28... Rb6 {[%clk 0:01:23.8]} 29. Rg3 {[%clk 0:00:23.1]} 29...
g6 {[%clk 0:01:13.6]} 30. bxc5 {[%clk 0:00:19.8]} 30... Re6 {[%clk 0:01:00.7]}
31. hxg6 {[%clk 0:00:18.7]} 31... fxg6 {[%clk 0:00:53.7]} 32. Rxg6+ {[%clk
0:00:15.6]} 32... Nxg6 {[%clk 0:00:42.8]} 33. f7+ {[%clk 0:00:15.3]} 33... Kg7
{[%clk 0:00:43.3]} 34. Bxh6+ {[%clk 0:00:13.3]} 34... Kxh6 {[%clk 0:00:42.9]}
35. f8=Q+ {[%clk 0:00:13.4]} 35... Nxf8 {[%clk 0:00:43.2]} 36. Qxf8+ {[%clk
0:00:13.1]} 36... Kg6 {[%clk 0:00:43.8]} 37. Qg8+ {[%clk 0:00:12.6]} 37... Kf6
{[%clk 0:00:44.2]} 38. Qf8+ {[%clk 0:00:11.4]} 38... Ke5 {[%clk 0:00:43.9]} 39.
Qg7+ {[%clk 0:00:11.3]} 39... Ke4 {[%clk 0:00:43.4]} 40. Qg5 {[%clk 0:00:08.3]}
40... Qxg5 {[%clk 0:00:42.7]} 0-1

[Event "Late-Titled-Tuesday-Blitz-June-25-2024"]
[Site "Chess.com"]
[Date "2024.06.25"]
[Round "8"]
[White "Bob_2004"]
[Black "Heliosis11"]
[Result "1-0"]
[WhiteElo "2712"]
[BlackElo "2423"]
[TimeControl "180+1"]
[EndTime "15:26:41 PDT"]
[Termination "Bob_2004 won on time"]

1. e4 {[%clk 0:03:00.9]} 1... c5 {[%clk 0:02:34.4]} 2. Nf3 {[%clk 0:02:56.3]}
2... e6 {[%clk 0:02:35]} 3. d4 {[%clk 0:02:56]} 3... cxd4 {[%clk 0:02:35.9]} 4.
Nxd4 {[%clk 0:02:56.7]} 4... Nc6 {[%clk 0:02:36.5]} 5. Nc3 {[%clk 0:02:57]} 5...
Qc7 {[%clk 0:02:36.8]} 6. Qd3 {[%clk 0:02:56.7]} 6... Nf6 {[%clk 0:02:36.3]} 7.
Nxc6 {[%clk 0:02:54.9]} 7... bxc6 {[%clk 0:02:36.5]} 8. Qg3 {[%clk 0:02:50]}
8... Qxg3 {[%clk 0:02:36.3]} 9. hxg3 {[%clk 0:02:49.5]} 9... d5 {[%clk
0:02:36.8]} 10. Bd2 {[%clk 0:02:40.9]} 10... Rb8 {[%clk 0:02:29.5]} 11. O-O-O
{[%clk 0:02:40.5]} 11... Be7 {[%clk 0:02:18.4]} 12. Bf4 {[%clk 0:02:38.7]} 12...
Rb4 {[%clk 0:02:10.8]} 13. a3 {[%clk 0:02:37.7]} 13... Rb7 {[%clk 0:02:04.4]}
14. Ba6 {[%clk 0:02:35]} 14... O-O {[%clk 0:01:49.7]} 15. Bxb7 {[%clk
0:02:32.3]} 15... Bxb7 {[%clk 0:01:50.6]} 16. f3 {[%clk 0:02:27.5]} 16... Nd7
{[%clk 0:01:42]} 17. Rhe1 {[%clk 0:02:25.1]} 17... g5 {[%clk 0:01:29.9]} 18. Be3
{[%clk 0:02:21.2]} 18... Bf6 {[%clk 0:01:15.5]} 19. Na4 {[%clk 0:02:06.1]} 19...
Ne5 {[%clk 0:01:11.1]} 20. b3 {[%clk 0:01:52.9]} 20... Be7 {[%clk 0:01:07.3]}
21. Bc5 {[%clk 0:01:51.5]} 21... Ng6 {[%clk 0:00:56.3]} 22. Bxe7 {[%clk
0:01:46.8]} 22... Nxe7 {[%clk 0:00:45.4]} 23. Nc5 {[%clk 0:01:47.7]} 23... Ba8
{[%clk 0:00:45.2]} 24. b4 {[%clk 0:01:41.4]} 24... Ng6 {[%clk 0:00:41.6]} 25. c4
{[%clk 0:01:36.1]} 25... h5 {[%clk 0:00:37.9]} 26. Nd7 {[%clk 0:01:27.1]} 26...
Rd8 {[%clk 0:00:09.9]} 27. Nf6+ {[%clk 0:01:25.7]} 27... Kh8 {[%clk 0:00:10.1]}
28. c5 {[%clk 0:01:18.3]} 28... h4 {[%clk 0:00:09.3]} 29. Rh1 {[%clk 0:01:15.2]}
29... Kg7 {[%clk 0:00:09.4]} 30. Nh5+ {[%clk 0:01:12.4]} 30... Kh6 {[%clk
0:00:10]} 31. g4 {[%clk 0:01:09.2]} 31... d4 {[%clk 0:00:07.4]} 32. Kb2 {[%clk
0:00:55]} 32... e5 {[%clk 0:00:06.4]} 33. g3 {[%clk 0:00:49.7]} 33... Bb7 {[%clk
0:00:06.5]} 34. gxh4 {[%clk 0:00:48.8]} 34... Nxh4 {[%clk 0:00:07.4]} 35. Ng3
{[%clk 0:00:48.4]} 35... Kg6 {[%clk 0:00:07.4]} 36. Nf5 {[%clk 0:00:48.1]} 36...
Nxf5 {[%clk 0:00:05.4]} 37. gxf5+ {[%clk 0:00:49]} 37... Kg7 {[%clk 0:00:05.2]}
38. Rh5 {[%clk 0:00:44]} 38... f6 {[%clk 0:00:05.1]} 39. Rdh1 {[%clk 0:00:44]}
39... Bc8 {[%clk 0:00:02.5]} 40. Rh7+ {[%clk 0:00:43.2]} 40... Kf8 {[%clk
0:00:02.9]} 41. Rh8+ {[%clk 0:00:43.6]} 1-0

[Event "Late-Titled-Tuesday-Blitz-June-25-2024"]
[Site "Chess.com"]
[Date "2024.06.25"]
[Round "8"]
[White "DmitriiZakurdaev"]
[Black "Leebit02"]
[Result "0-1"]
[WhiteElo "2419"]
[BlackElo "2593"]
[TimeControl "180+1"]
[EndTime "15:26:44 PDT"]
[Termination "Leebit02 won on time"]

1. d4 {[%clk 0:03:00.9]} 1... d5 {[%clk 0:02:56.8]} 2. c4 {[%clk 0:02:58.3]}
2... dxc4 {[%clk 0:02:57]} 3. Nf3 {[%clk 0:02:55.8]} 3... Nf6 {[%clk 0:02:56.8]}
4. e3 {[%clk 0:02:55.3]} 4... e6 {[%clk 0:02:56.8]} 5. Bxc4 {[%clk 0:02:55.3]}
5... a6 {[%clk 0:02:57.1]} 6. O-O {[%clk 0:02:55.1]} 6... c5 {[%clk 0:02:57.6]}
7. b3 {[%clk 0:02:48.8]} 7... Nbd7 {[%clk 0:02:55.4]} 8. Bb2 {[%clk 0:02:48.2]}
8... b5 {[%clk 0:02:55.5]} 9. Be2 {[%clk 0:02:47.8]} 9... Bb7 {[%clk 0:02:56.1]}
10. a4 {[%clk 0:02:47]} 10... b4 {[%clk 0:02:55.7]} 11. Nbd2 {[%clk 0:02:47.2]}
11... Be7 {[%clk 0:02:56.1]} 12. Nc4 {[%clk 0:02:47.4]} 12... O-O {[%clk
0:02:56.6]} 13. Nfe5 {[%clk 0:02:42.2]} 13... cxd4 {[%clk 0:02:56.8]} 14. Qxd4
{[%clk 0:02:35]} 14... Nc5 {[%clk 0:02:50.6]} 15. Qxd8 {[%clk 0:02:21.1]} 15...
Rfxd8 {[%clk 0:02:49.3]} 16. Na5 {[%clk 0:02:19.7]} 16... Bd5 {[%clk 0:02:45.2]}
17. Nec6 {[%clk 0:02:14]} 17... Rd7 {[%clk 0:02:31.7]} 18. Nxb4 {[%clk
0:01:54.4]} 18... Bxb3 {[%clk 0:02:26.3]} 19. Nac6 {[%clk 0:01:28.4]} 19... Bf8
{[%clk 0:02:22]} 20. a5 {[%clk 0:01:10.8]} 20... Rd2 {[%clk 0:02:09]} 21. Bxf6
{[%clk 0:01:10.6]} 21... gxf6 {[%clk 0:02:09]} 22. Bf3 {[%clk 0:01:09.3]} 22...
Rc8 {[%clk 0:02:04.4]} 23. Nd4 {[%clk 0:01:00.5]} 23... e5 {[%clk 0:01:36]} 24.
Nxb3 {[%clk 0:00:40.6]} 24... Nxb3 {[%clk 0:01:36.3]} 25. Rab1 {[%clk
0:00:38.7]} 25... Nxa5 {[%clk 0:01:29.3]} 26. Nd5 {[%clk 0:00:38.1]} 26... Kg7
{[%clk 0:01:22]} 27. Rb6 {[%clk 0:00:36]} 27... Rc6 {[%clk 0:01:13.2]} 28. Rb8
{[%clk 0:00:16.7]} 28... Rd6 {[%clk 0:01:07.7]} 29. Nc7 {[%clk 0:00:15.4]} 29...
Rd8 {[%clk 0:01:01.6]} 30. Rb6 {[%clk 0:00:10.3]} 30... Nc4 {[%clk 0:00:53.8]}
31. Rxa6 {[%clk 0:00:09.4]} 31... f5 {[%clk 0:00:51.5]} 32. g3 {[%clk
0:00:08.9]} 32... e4 {[%clk 0:00:51.6]} 33. Bh5 {[%clk 0:00:08.9]} 33... Bc5
{[%clk 0:00:40.5]} 34. Nb5 {[%clk 0:00:08.4]} 34... Ne5 {[%clk 0:00:34.3]} 35.
Ra5 {[%clk 0:00:02.8]} 35... Nd3 {[%clk 0:00:32.8]} 36. Nc7 {[%clk 0:00:01.1]}
36... Bb6 {[%clk 0:00:31.4]} 0-1

[Event "Late-Titled-Tuesday-Blitz-June-25-2024"]
[Site "Chess.com"]
[Date "2024.06.25"]
[Round "8"]
[White "Fandorine"]
[Black "Grischuk"]
[Result "1-0"]
[WhiteElo "2935"]
[BlackElo "3104"]
[TimeControl "180+1"]
[EndTime "15:26:45 PDT"]
[Termination "Fandorine won by resignation"]

1. d4 {[%clk 0:03:00.9]} 1... e6 {[%clk 0:02:57]} 2. e4 {[%clk 0:02:53.6]} 2...
d5 {[%clk 0:02:57.1]} 3. Nc3 {[%clk 0:02:52.5]} 3... Nf6 {[%clk 0:02:56.7]} 4.
e5 {[%clk 0:02:52.2]} 4... Nfd7 {[%clk 0:02:56.7]} 5. f4 {[%clk 0:02:52.6]} 5...
c5 {[%clk 0:02:57.4]} 6. Nf3 {[%clk 0:02:52.9]} 6... Nc6 {[%clk 0:02:58.1]} 7.
Be3 {[%clk 0:02:53.2]} 7... cxd4 {[%clk 0:02:58.8]} 8. Nxd4 {[%clk 0:02:53.1]}
8... Qb6 {[%clk 0:02:59.5]} 9. Qd2 {[%clk 0:02:53.3]} 9... Qxb2 {[%clk
0:02:58.5]} 10. Rb1 {[%clk 0:02:52.9]} 10... Qa3 {[%clk 0:02:58.8]} 11. Ncb5
{[%clk 0:02:53.1]} 11... Qxa2 {[%clk 0:02:46.9]} 12. Rd1 {[%clk 0:02:53.6]}
12... Rb8 {[%clk 0:02:16.9]} 13. Nc7+ {[%clk 0:02:51.9]} 13... Kd8 {[%clk
0:02:12.7]} 14. Ncb5 {[%clk 0:02:52.4]} 14... a6 {[%clk 0:01:57.1]} 15. Nd6
{[%clk 0:02:52.6]} 15... Bxd6 {[%clk 0:01:56.7]} 16. exd6 {[%clk 0:02:53.5]}
16... Qa3 {[%clk 0:01:49.1]} 17. Bd3 {[%clk 0:02:52.3]} 17... Qxd6 {[%clk
0:01:48.1]} 18. O-O {[%clk 0:02:52.1]} 18... Nc5 {[%clk 0:01:26.9]} 19. Nxc6+
{[%clk 0:02:35.9]} 19... Qxc6 {[%clk 0:01:27.8]} 20. Qc3 {[%clk 0:02:34.7]}
20... b6 {[%clk 0:00:41.4]} 21. Qxg7 {[%clk 0:02:33.6]} 21... Qe8 {[%clk
0:00:42.1]} 22. Bd4 {[%clk 0:01:21.7]} 22... Rg8 {[%clk 0:00:41.9]} 23. Qf6+
{[%clk 0:01:19.6]} 23... Kd7 {[%clk 0:00:34.4]} 24. Bxh7 {[%clk 0:01:18.9]}
24... Bb7 {[%clk 0:00:22.2]} 25. Bxg8 {[%clk 0:01:06.4]} 25... Qxg8 {[%clk
0:00:23.1]} 26. f5 {[%clk 0:01:04.9]} 26... Ne4 {[%clk 0:00:20.2]} 27. fxe6+
{[%clk 0:01:05.2]} 27... fxe6 {[%clk 0:00:20.8]} 28. Qe5 {[%clk 0:01:05.7]}
28... Rc8 {[%clk 0:00:15.5]} 29. c3 {[%clk 0:01:01.1]} 29... Qg6 {[%clk
0:00:13.8]} 30. Rf3 {[%clk 0:00:40.5]} 30... Rg8 {[%clk 0:00:07.8]} 31. g3
{[%clk 0:00:39.5]} 31... Ng5 {[%clk 0:00:04.2]} 32. Rf6 {[%clk 0:00:36]} 32...
Qc2 {[%clk 0:00:03.3]} 33. Rdf1 {[%clk 0:00:31.4]} 33... Kc8 {[%clk 0:00:01.6]}
34. Rf8+ {[%clk 0:00:20.6]} 1-0

[Event "Late-Titled-Tuesday-Blitz-June-25-2024"]
[Site "Chess.com"]
[Date "2024.06.25"]
[Round "8"]
[White "Sasha_Solovev_777"]
[Black "ATM622"]
[Result "0-1"]
[WhiteElo "2258"]
[BlackElo "2526"]
[TimeControl "180+1"]
[EndTime "15:26:45 PDT"]
[Termination "ATM622 won by checkmate"]

1. e4 {[%clk 0:03:00.9]} 1... c6 {[%clk 0:02:58.9]} 2. d4 {[%clk 0:03:00.2]}
2... d5 {[%clk 0:02:59.2]} 3. Nc3 {[%clk 0:03:00.1]} 3... dxe4 {[%clk
0:02:59.4]} 4. Nxe4 {[%clk 0:03:00.9]} 4... Bf5 {[%clk 0:02:59.7]} 5. Ng3 {[%clk
0:03:00]} 5... Bg6 {[%clk 0:03:00]} 6. Nf3 {[%clk 0:03:00.7]} 6... Nd7 {[%clk
0:02:59.9]} 7. h4 {[%clk 0:03:00.8]} 7... h6 {[%clk 0:03:00.3]} 8. h5 {[%clk
0:03:01.3]} 8... Bh7 {[%clk 0:03:00.5]} 9. Bd3 {[%clk 0:03:01.8]} 9... Bxd3
{[%clk 0:03:00.9]} 10. Qxd3 {[%clk 0:03:02.7]} 10... Ngf6 {[%clk 0:03:01.4]} 11.
Bd2 {[%clk 0:03:02.6]} 11... e6 {[%clk 0:03:01.8]} 12. O-O-O {[%clk 0:03:02.6]}
12... Be7 {[%clk 0:03:02.4]} 13. Qe2 {[%clk 0:03:01.1]} 13... b5 {[%clk
0:02:58.1]} 14. Ne5 {[%clk 0:02:55.9]} 14... Qb6 {[%clk 0:02:57.5]} 15. Be3
{[%clk 0:02:32.2]} 15... Nd5 {[%clk 0:02:50.1]} 16. Nxd7 {[%clk 0:02:30.6]}
16... Kxd7 {[%clk 0:02:51]} 17. Ne4 {[%clk 0:02:25.1]} 17... Qa5 {[%clk
0:02:48.1]} 18. Kb1 {[%clk 0:02:22.4]} 18... Rab8 {[%clk 0:02:24.8]} 19. Nc5+
{[%clk 0:02:09]} 19... Kc8 {[%clk 0:02:23.1]} 20. Bd2 {[%clk 0:01:47.3]} 20...
b4 {[%clk 0:02:12.1]} 21. Nb3 {[%clk 0:01:44.3]} 21... Qb5 {[%clk 0:02:09.3]}
22. Qg4 {[%clk 0:01:35.1]} 22... Bf6 {[%clk 0:01:59.7]} 23. Rhe1 {[%clk
0:01:31.5]} 23... Re8 {[%clk 0:01:56.3]} 24. f4 {[%clk 0:01:29]} 24... a5 {[%clk
0:01:52.4]} 25. f5 {[%clk 0:01:24.6]} 25... e5 {[%clk 0:01:24.2]} 26. dxe5
{[%clk 0:01:13.2]} 26... Rxe5 {[%clk 0:01:24.3]} 27. Rxe5 {[%clk 0:01:08.1]}
27... Bxe5 {[%clk 0:01:25.2]} 28. f6+ {[%clk 0:01:04.2]} 28... Kc7 {[%clk
0:01:25.5]} 29. fxg7 {[%clk 0:01:02.6]} 29... Rg8 {[%clk 0:01:25.5]} 30. Bxh6
{[%clk 0:01:02.4]} 30... a4 {[%clk 0:01:21.7]} 31. Nd4 {[%clk 0:01:01.5]} 31...
Bxd4 {[%clk 0:01:14.3]} 32. Qxd4 {[%clk 0:01:01.2]} 32... Nc3+ {[%clk
0:01:03.2]} 33. Kc1 {[%clk 0:00:41.7]} 33... Ne2+ {[%clk 0:01:02.9]} 34. Kb1
{[%clk 0:00:37.9]} 34... Nxd4 {[%clk 0:01:03.1]} 35. Bf4+ {[%clk 0:00:37.6]}
35... Kb7 {[%clk 0:01:02.8]} 36. h6 {[%clk 0:00:38.4]} 36... Qc4 {[%clk
0:00:25.1]} 37. Rc1 {[%clk 0:00:35.8]} 37... b3 {[%clk 0:00:19.9]} 38. h7 {[%clk
0:00:32.4]} 38... bxc2+ {[%clk 0:00:19.8]} 39. Ka1 {[%clk 0:00:32.3]} 39... Nb3+
{[%clk 0:00:19.9]} 40. axb3 {[%clk 0:00:32.2]} 40... axb3 {[%clk 0:00:20.3]} 41.
Rxc2 {[%clk 0:00:29.8]} 41... bxc2 {[%clk 0:00:18.1]} 42. hxg8=Q {[%clk
0:00:28.8]} 42... Qa4# {[%clk 0:00:16.6]} 0-1

[Event "Late-Titled-Tuesday-Blitz-June-25-2024"]
[Site "Chess.com"]
[Date "2024.06.25"]
[Round "8"]
[White "shirovin"]
[Black "boguszp"]
[Result "1-0"]
[WhiteElo "2089"]
[BlackElo "1969"]
[TimeControl "180+1"]
[EndTime "15:26:48 PDT"]
[Termination "shirovin won on time"]

1. e4 {[%clk 0:03:00.9]} 1... c6 {[%clk 0:02:59.7]} 2. d4 {[%clk 0:03:00]} 2...
d5 {[%clk 0:03:00.3]} 3. exd5 {[%clk 0:03:00.5]} 3... cxd5 {[%clk 0:03:00.3]} 4.
Bd3 {[%clk 0:03:00.8]} 4... Nc6 {[%clk 0:03:00.4]} 5. c3 {[%clk 0:03:01.2]} 5...
Nf6 {[%clk 0:02:59.6]} 6. Bf4 {[%clk 0:03:01.5]} 6... Bg4 {[%clk 0:02:56.1]} 7.
Qb3 {[%clk 0:03:00.1]} 7... Qd7 {[%clk 0:02:53]} 8. Nd2 {[%clk 0:02:56.3]} 8...
e6 {[%clk 0:02:51.8]} 9. Ngf3 {[%clk 0:02:55.2]} 9... Bxf3 {[%clk 0:02:50.6]}
10. Nxf3 {[%clk 0:02:54.6]} 10... Be7 {[%clk 0:02:47.1]} 11. O-O {[%clk
0:02:53.1]} 11... O-O {[%clk 0:02:45.3]} 12. h3 {[%clk 0:02:52.6]} 12... a6
{[%clk 0:02:35.4]} 13. Rfe1 {[%clk 0:02:47.4]} 13... Rac8 {[%clk 0:02:34.3]} 14.
Qd1 {[%clk 0:02:44.2]} 14... Bd6 {[%clk 0:02:30.9]} 15. Ne5 {[%clk 0:02:42.4]}
15... Qc7 {[%clk 0:02:22.8]} 16. Qf3 {[%clk 0:02:22.2]} 16... Nd7 {[%clk
0:01:52.9]} 17. Nxd7 {[%clk 0:02:02.2]} 17... Qxd7 {[%clk 0:01:49.6]} 18. Bg5
{[%clk 0:01:56.5]} 18... Be7 {[%clk 0:01:41.6]} 19. Bd2 {[%clk 0:01:45.7]} 19...
Rfe8 {[%clk 0:01:17.8]} 20. Qh5 {[%clk 0:01:40.5]} 20... g6 {[%clk 0:01:13.3]}
21. Qf3 {[%clk 0:01:31]} 21... Bf8 {[%clk 0:01:09.4]} 22. h4 {[%clk 0:01:29.4]}
22... Bg7 {[%clk 0:01:04.8]} 23. h5 {[%clk 0:01:28.8]} 23... Na5 {[%clk
0:00:47.2]} 24. h6 {[%clk 0:01:15.4]} 24... Bh8 {[%clk 0:00:31.1]} 25. b3 {[%clk
0:01:12.3]} 25... b5 {[%clk 0:00:24.1]} 26. Rac1 {[%clk 0:00:58.1]} 26... Nb7
{[%clk 0:00:17.2]} 27. Bf4 {[%clk 0:00:56.2]} 27... Nd6 {[%clk 0:00:15.3]} 28.
Be5 {[%clk 0:00:55]} 28... Nf5 {[%clk 0:00:10.3]} 29. Bxh8 {[%clk 0:00:36.4]}
29... Kxh8 {[%clk 0:00:09.7]} 30. g4 {[%clk 0:00:35.8]} 30... Nxh6 {[%clk
0:00:06.6]} 31. Kg2 {[%clk 0:00:29.8]} 31... Ng8 {[%clk 0:00:03.1]} 32. Rh1
{[%clk 0:00:25.5]} 32... Kg7 {[%clk 0:00:02.4]} 33. Qh3 {[%clk 0:00:23.7]} 33...
h6 {[%clk 0:00:01.8]} 34. Be2 {[%clk 0:00:17.7]} 1-0

[Event "Late-Titled-Tuesday-Blitz-June-25-2024"]
[Site "Chess.com"]
[Date "2024.06.25"]
[Round "8"]
[White "CM_rui"]
[Black "jcibarra"]
[Result "1-0"]
[WhiteElo "2580"]
[BlackElo "2894"]
[TimeControl "180+1"]
[EndTime "15:26:50 PDT"]
[Termination "CM_rui won by resignation"]

1. e4 {[%clk 0:02:56.7]} 1... Nc6 {[%clk 0:02:57.8]} 2. d4 {[%clk 0:02:56.7]}
2... d5 {[%clk 0:02:57.4]} 3. exd5 {[%clk 0:02:47.3]} 3... Qxd5 {[%clk
0:02:58.3]} 4. Nf3 {[%clk 0:02:46.8]} 4... Bg4 {[%clk 0:02:58.1]} 5. Be2 {[%clk
0:02:46.2]} 5... O-O-O {[%clk 0:02:57.4]} 6. Nc3 {[%clk 0:02:43.7]} 6... Qh5
{[%clk 0:02:49.1]} 7. Be3 {[%clk 0:02:39.1]} 7... e5 {[%clk 0:02:46.1]} 8. d5
{[%clk 0:02:27.1]} 8... Nf6 {[%clk 0:02:43.2]} 9. O-O {[%clk 0:02:24.8]} 9... e4
{[%clk 0:02:30.3]} 10. Ng5 {[%clk 0:01:59.9]} 10... h6 {[%clk 0:02:14.2]} 11.
Nxf7 {[%clk 0:01:46.2]} 11... Bd6 {[%clk 0:01:36.7]} 12. h3 {[%clk 0:01:34.3]}
12... Ne5 {[%clk 0:00:49.3]} 13. Nxd6+ {[%clk 0:01:11.6]} 13... Rxd6 {[%clk
0:00:48.5]} 14. hxg4 {[%clk 0:01:06.6]} 14... Nfxg4 {[%clk 0:00:46.1]} 15. Bf4
{[%clk 0:01:03.5]} 15... Qf5 {[%clk 0:00:35.4]} 16. Bxg4 {[%clk 0:00:49]} 16...
Nxg4 {[%clk 0:00:35.6]} 17. Bxd6 {[%clk 0:00:49.3]} 17... cxd6 {[%clk
0:00:36.5]} 18. f3 {[%clk 0:00:34.3]} 18... Ne3 {[%clk 0:00:16.9]} 19. Qe2
{[%clk 0:00:21.3]} 19... Nxf1 {[%clk 0:00:16.6]} 20. Rxf1 {[%clk 0:00:22.2]}
20... exf3 {[%clk 0:00:14.7]} 21. Rxf3 {[%clk 0:00:21.9]} 21... Qg5 {[%clk
0:00:13.8]} 22. Ne4 {[%clk 0:00:19.9]} 22... Qxd5 {[%clk 0:00:12.9]} 23. Rd3
{[%clk 0:00:16.3]} 23... Qxa2 {[%clk 0:00:11.9]} 24. Nxd6+ {[%clk 0:00:16.2]}
24... Kb8 {[%clk 0:00:12.5]} 25. Qe7 {[%clk 0:00:15.1]} 25... Qxb2 {[%clk
0:00:09.6]} 26. Rb3 {[%clk 0:00:07.9]} 26... Qc1+ {[%clk 0:00:09.7]} 27. Kh2
{[%clk 0:00:08.6]} 27... Qf4+ {[%clk 0:00:10.4]} 28. Kh3 {[%clk 0:00:08.1]}
28... Qe3+ {[%clk 0:00:03.3]} 29. Rxe3 {[%clk 0:00:07.3]} 1-0

[Event "Late-Titled-Tuesday-Blitz-June-25-2024"]
[Site "Chess.com"]
[Date "2024.06.25"]
[Round "8"]
[White "IMRosen"]
[Black "KoshkaMatrioshka"]
[Result "0-1"]
[WhiteElo "2699"]
[BlackElo "2563"]
[TimeControl "180+1"]
[EndTime "15:26:51 PDT"]
[Termination "KoshkaMatrioshka won on time"]

1. e4 {[%clk 0:03:00.4]} 1... e6 {[%clk 0:03:00.3]} 2. d4 {[%clk 0:02:59.3]}
2... d5 {[%clk 0:03:00.9]} 3. Nc3 {[%clk 0:03:00]} 3... Bb4 {[%clk 0:03:00.8]}
4. exd5 {[%clk 0:02:55.1]} 4... exd5 {[%clk 0:03:00.9]} 5. Bd3 {[%clk
0:02:48.6]} 5... Nf6 {[%clk 0:03:01.1]} 6. a3 {[%clk 0:02:48.1]} 6... Be7 {[%clk
0:02:58]} 7. Qf3 {[%clk 0:02:44.1]} 7... Bg4 {[%clk 0:02:45.7]} 8. Qg3 {[%clk
0:02:44]} 8... h5 {[%clk 0:02:31.3]} 9. Bf4 {[%clk 0:02:38.6]} 9... h4 {[%clk
0:02:25.9]} 10. Qe3 {[%clk 0:02:38.9]} 10... O-O {[%clk 0:02:16.1]} 11. h3
{[%clk 0:02:33.7]} 11... Bh5 {[%clk 0:02:12.8]} 12. Nf3 {[%clk 0:02:30.3]} 12...
Re8 {[%clk 0:02:07.5]} 13. Ne5 {[%clk 0:02:20.2]} 13... c5 {[%clk 0:02:03.1]}
14. Bb5 {[%clk 0:02:09.6]} 14... cxd4 {[%clk 0:01:52.7]} 15. Qxd4 {[%clk
0:02:07.3]} 15... Nc6 {[%clk 0:01:52.8]} 16. Bxc6 {[%clk 0:01:55.9]} 16... bxc6
{[%clk 0:01:52.4]} 17. O-O {[%clk 0:01:55.4]} 17... c5 {[%clk 0:01:48.3]} 18.
Qa4 {[%clk 0:01:46.1]} 18... Bd6 {[%clk 0:01:41.2]} 19. Rfe1 {[%clk 0:01:20.4]}
19... a6 {[%clk 0:01:34.1]} 20. Nd3 {[%clk 0:01:08.9]} 20... Bg6 {[%clk
0:00:37.1]} 21. Bxd6 {[%clk 0:01:04.1]} 21... Qxd6 {[%clk 0:00:37.3]} 22. Qxh4
{[%clk 0:00:41]} 22... d4 {[%clk 0:00:32.2]} 23. Ne2 {[%clk 0:00:16.7]} 23... c4
{[%clk 0:00:20.7]} 24. Nb4 {[%clk 0:00:17]} 24... d3 {[%clk 0:00:19.7]} 25. cxd3
{[%clk 0:00:16.5]} 25... cxd3 {[%clk 0:00:19.4]} 26. Nc3 {[%clk 0:00:15.2]}
26... a5 {[%clk 0:00:18.6]} 27. Nba2 {[%clk 0:00:09.8]} 27... Qb6 {[%clk
0:00:17.4]} 28. Reb1 {[%clk 0:00:03.2]} 28... d2 {[%clk 0:00:17.2]} 29. Rd1
{[%clk 0:00:03.7]} 29... Qxb2 {[%clk 0:00:17.5]} 30. Qf4 {[%clk 0:00:03.3]}
30... Rad8 {[%clk 0:00:10.1]} 31. f3 {[%clk 0:00:03.7]} 31... Qxa1 {[%clk
0:00:09]} 32. Rxa1 {[%clk 0:00:03.1]} 32... Re1+ {[%clk 0:00:09.7]} 0-1